[Event "Early-Titled-Tuesday-Blitz-March-05-2024"]
[Site "Chess.com"]
[Date "2024.03.05"]
[Round "3"]
[White "awesomevishesh"]
[Black "LiamPutnam2008"]
[Result "1-0"]
[WhiteElo "2633"]
[BlackElo "2900"]
[TimeControl "180+1"]
[EndTime "8:34:07 PST"]
[Termination "awesomevishesh won by checkmate"]

1. e4 {[%clk 0:02:55]} 1... c5 {[%clk 0:02:55.3]} 2. Nf3 {[%clk 0:02:54.7]} 2...
d6 {[%clk 0:02:55.1]} 3. Bb5+ {[%clk 0:02:53.7]} 3... Bd7 {[%clk 0:02:53.9]} 4.
Bxd7+ {[%clk 0:02:52.6]} 4... Nxd7 {[%clk 0:02:54.6]} 5. O-O {[%clk 0:02:44.8]}
5... Ngf6 {[%clk 0:02:53.8]} 6. Qe2 {[%clk 0:02:44.6]} 6... e6 {[%clk
0:02:47.7]} 7. c3 {[%clk 0:02:37.6]} 7... Be7 {[%clk 0:02:43.9]} 8. d4 {[%clk
0:02:37.1]} 8... cxd4 {[%clk 0:02:44.7]} 9. cxd4 {[%clk 0:02:37]} 9... d5 {[%clk
0:02:45.4]} 10. e5 {[%clk 0:02:36.8]} 10... Ne4 {[%clk 0:02:46.1]} 11. Nbd2
{[%clk 0:02:36.2]} 11... Nxd2 {[%clk 0:02:45.6]} 12. Bxd2 {[%clk 0:02:36.1]}
12... O-O {[%clk 0:02:44.6]} 13. Rac1 {[%clk 0:02:26.5]} 13... Qb6 {[%clk
0:02:41.7]} 14. Be3 {[%clk 0:02:06.4]} 14... Rac8 {[%clk 0:02:33.8]} 15. Rxc8
{[%clk 0:01:39.9]} 15... Rxc8 {[%clk 0:02:34.7]} 16. Rc1 {[%clk 0:01:39.5]}
16... Rc6 {[%clk 0:02:35.2]} 17. g3 {[%clk 0:01:31.3]} 17... Qa5 {[%clk
0:02:17]} 18. b3 {[%clk 0:01:13.8]} 18... h6 {[%clk 0:02:16.8]} 19. h4 {[%clk
0:01:13]} 19... Ba3 {[%clk 0:02:13.6]} 20. Rc2 {[%clk 0:01:09.7]} 20... Qc7
{[%clk 0:02:00]} 21. Ne1 {[%clk 0:01:08.9]} 21... Bb4 {[%clk 0:01:49.5]} 22.
Rxc6 {[%clk 0:01:07.5]} 22... bxc6 {[%clk 0:01:50.4]} 23. Nd3 {[%clk 0:01:07.6]}
23... Bf8 {[%clk 0:01:45.9]} 24. Qc2 {[%clk 0:01:00.5]} 24... c5 {[%clk
0:01:43.9]} 25. dxc5 {[%clk 0:00:51.3]} 25... Nxe5 {[%clk 0:01:11.8]} 26. Nxe5
{[%clk 0:00:50.9]} 26... Qxe5 {[%clk 0:01:11.9]} 27. c6 {[%clk 0:00:50.7]} 27...
Qc7 {[%clk 0:00:55.2]} 28. Bf4 {[%clk 0:00:44.9]} 28... Qc8 {[%clk 0:00:33.5]}
29. c7 {[%clk 0:00:43.7]} 29... f6 {[%clk 0:00:34.1]} 30. Qc6 {[%clk 0:00:40]}
30... Kf7 {[%clk 0:00:33.1]} 31. Be3 {[%clk 0:00:31.2]} 31... a6 {[%clk
0:00:29.1]} 32. Qb6 {[%clk 0:00:22]} 32... Ke8 {[%clk 0:00:23.5]} 33. Qc6+
{[%clk 0:00:20.2]} 33... Kf7 {[%clk 0:00:23.8]} 34. b4 {[%clk 0:00:14]} 34...
Bxb4 {[%clk 0:00:11.9]} 35. Qb6 {[%clk 0:00:14]} 35... Ke8 {[%clk 0:00:12.6]}
36. Qxb4 {[%clk 0:00:12.7]} 36... Qxc7 {[%clk 0:00:13]} 37. Bc5 {[%clk
0:00:09.1]} 37... Kf7 {[%clk 0:00:12.4]} 38. a4 {[%clk 0:00:09]} 38... e5 {[%clk
0:00:11.6]} 39. a5 {[%clk 0:00:08.7]} 39... d4 {[%clk 0:00:11.4]} 40. Qb6 {[%clk
0:00:08.4]} 40... Qc8 {[%clk 0:00:09.6]} 41. Qa7+ {[%clk 0:00:05.7]} 41... Kg6
{[%clk 0:00:09.7]} 42. Qb6 {[%clk 0:00:05.1]} 42... d3 {[%clk 0:00:09.7]} 43.
Be3 {[%clk 0:00:05.4]} 43... Qc4 {[%clk 0:00:09.5]} 44. Qd8 {[%clk 0:00:05]}
44... Qb5 {[%clk 0:00:08.2]} 45. Kh2 {[%clk 0:00:05.2]} 45... Qc4 {[%clk
0:00:08.1]} 46. Qd7 {[%clk 0:00:05.1]} 46... e4 {[%clk 0:00:06.5]} 47. Qe8+
{[%clk 0:00:05.2]} 47... Kh7 {[%clk 0:00:06.5]} 48. Qd7 {[%clk 0:00:04.8]} 48...
Kg6 {[%clk 0:00:05.3]} 49. Qe8+ {[%clk 0:00:04.8]} 49... Kh7 {[%clk 0:00:05.7]}
50. h5 {[%clk 0:00:05.4]} 50... Qd5 {[%clk 0:00:04.7]} 51. Qg6+ {[%clk
0:00:05.3]} 51... Kg8 {[%clk 0:00:05.4]} 52. Qg4 {[%clk 0:00:05.1]} 52... f5
{[%clk 0:00:05]} 53. Qd1 {[%clk 0:00:05.1]} 53... Qf7 {[%clk 0:00:04.9]} 54. Kg2
{[%clk 0:00:04.8]} 54... Kh7 {[%clk 0:00:04.3]} 55. Bf4 {[%clk 0:00:04.9]} 55...
Qc4 {[%clk 0:00:04]} 56. Be3 {[%clk 0:00:05.1]} 56... Qd5 {[%clk 0:00:04.3]} 57.
Qd2 {[%clk 0:00:05.3]} 57... Qf7 {[%clk 0:00:04.7]} 58. Qc3 {[%clk 0:00:05.6]}
58... Qxh5 {[%clk 0:00:04.9]} 59. Qe5 {[%clk 0:00:05.5]} 59... Qf3+ {[%clk
0:00:05.5]} 60. Kg1 {[%clk 0:00:05.3]} 60... h5 {[%clk 0:00:06.3]} 61. Qd4
{[%clk 0:00:05.2]} 61... Qd1+ {[%clk 0:00:06.4]} 62. Kh2 {[%clk 0:00:05.2]}
62... Qg4 {[%clk 0:00:07]} 63. Kg2 {[%clk 0:00:05.1]} 63... h4 {[%clk
0:00:07.5]} 64. Kh2 {[%clk 0:00:04.4]} 64... hxg3+ {[%clk 0:00:07.9]} 65. fxg3
{[%clk 0:00:04.7]} 65... Qe2+ {[%clk 0:00:08.7]} 66. Kh3 {[%clk 0:00:05.3]}
66... Qg4+ {[%clk 0:00:06.2]} 67. Kg2 {[%clk 0:00:05.6]} 67... Qh5 {[%clk
0:00:07]} 68. Kf2 {[%clk 0:00:04]} 68... Qe2+ {[%clk 0:00:05.9]} 69. Kg1 {[%clk
0:00:04.1]} 69... Kg6 {[%clk 0:00:06.6]} 70. Qd6+ {[%clk 0:00:03.9]} 70... Kh5
{[%clk 0:00:06.8]} 71. Qf4 {[%clk 0:00:03.6]} 71... Qd1+ {[%clk 0:00:06.6]} 72.
Kh2 {[%clk 0:00:03.7]} 72... Qg4 {[%clk 0:00:05.1]} 73. Qe5 {[%clk 0:00:03.3]}
73... Qe2+ {[%clk 0:00:04.9]} 74. Kh3 {[%clk 0:00:03.8]} 74... Qf1+ {[%clk
0:00:02.3]} 75. Kh2 {[%clk 0:00:03.9]} 75... Qe2+ {[%clk 0:00:03.2]} 76. Kh3
{[%clk 0:00:04.4]} 76... Qg4+ {[%clk 0:00:02]} 77. Kh2 {[%clk 0:00:04.7]} 77...
Kg6 {[%clk 0:00:02.9]} 78. Qd6+ {[%clk 0:00:04.7]} 78... Kh7 {[%clk 0:00:03.3]}
79. Qd4 {[%clk 0:00:04.6]} 79... Qh5+ {[%clk 0:00:02.9]} 80. Kg2 {[%clk
0:00:05]} 80... Qf7 {[%clk 0:00:03.8]} 81. Kh2 {[%clk 0:00:05.3]} 81... Qe6
{[%clk 0:00:04.2]} 82. Kg2 {[%clk 0:00:05.7]} 82... Kg6 {[%clk 0:00:04.9]} 83.
Kh2 {[%clk 0:00:05.9]} 83... Kf7 {[%clk 0:00:05.6]} 84. Kg2 {[%clk 0:00:06.3]}
84... Qf6 {[%clk 0:00:06.3]} 85. Qd7+ {[%clk 0:00:06.5]} 85... Kg8 {[%clk
0:00:06.5]} 86. Qe8+ {[%clk 0:00:06.7]} 86... Qf8 {[%clk 0:00:05.3]} 87. Qe6+
{[%clk 0:00:07.1]} 87... Qf7 {[%clk 0:00:05.9]} 88. Qc8+ {[%clk 0:00:07.4]}
88... Kh7 {[%clk 0:00:06.1]} 89. Qxa6 {[%clk 0:00:07.8]} 89... Qa2+ {[%clk
0:00:06]} 90. Kh3 {[%clk 0:00:07.7]} 90... Qe2 {[%clk 0:00:06.8]} 91. Qb6 {[%clk
0:00:07]} 91... d2 {[%clk 0:00:07.2]} 92. Bxd2 {[%clk 0:00:06.8]} 92... Qxd2
{[%clk 0:00:08.1]} 93. a6 {[%clk 0:00:07.2]} 93... e3 {[%clk 0:00:07.3]} 94. a7
{[%clk 0:00:07.3]} 94... e2 {[%clk 0:00:07.9]} 95. a8=Q {[%clk 0:00:07]} 95...
e1=Q {[%clk 0:00:08.4]} 96. Qf3 {[%clk 0:00:06.7]} 96... Qh6+ {[%clk 0:00:04.5]}
97. Qxh6+ {[%clk 0:00:06.6]} 97... Kxh6 {[%clk 0:00:05.4]} 98. Qxf5 {[%clk
0:00:06.2]} 98... Qh1+ {[%clk 0:00:06]} 99. Kg4 {[%clk 0:00:06.6]} 99... Qd1+
{[%clk 0:00:06.6]} 100. Kh3 {[%clk 0:00:06.1]} 100... Qh1+ {[%clk 0:00:06.7]}
101. Kg4 {[%clk 0:00:06.3]} 101... Qc6 {[%clk 0:00:07]} 102. Qh5# {[%clk
0:00:05.9]} 1-0

[Event "Early-Titled-Tuesday-Blitz-March-05-2024"]
[Site "Chess.com"]
[Date "2024.03.05"]
[Round "3"]
[White "luckyswitchback"]
[Black "xxysoul6"]
[Result "0-1"]
[WhiteElo "2680"]
[BlackElo "2915"]
[TimeControl "180+1"]
[EndTime "8:34:25 PST"]
[Termination "xxysoul6 won by resignation"]

1. e4 {[%clk 0:03:00.9]} 1... e5 {[%clk 0:02:55.4]} 2. Nf3 {[%clk 0:03:00.6]}
2... Nf6 {[%clk 0:02:55.5]} 3. Nxe5 {[%clk 0:02:59.6]} 3... d6 {[%clk
0:02:55.8]} 4. Nf3 {[%clk 0:02:59.8]} 4... Nxe4 {[%clk 0:02:56.5]} 5. d3 {[%clk
0:03:00.4]} 5... Nf6 {[%clk 0:02:55.7]} 6. d4 {[%clk 0:03:00.9]} 6... Be7 {[%clk
0:02:54.9]} 7. Bd3 {[%clk 0:03:00.7]} 7... O-O {[%clk 0:02:55.5]} 8. O-O {[%clk
0:03:00.6]} 8... b6 {[%clk 0:02:53.4]} 9. c4 {[%clk 0:02:57.1]} 9... Bb7 {[%clk
0:02:53.4]} 10. d5 {[%clk 0:02:47.1]} 10... Re8 {[%clk 0:02:47.9]} 11. Nc3
{[%clk 0:02:46.3]} 11... Nbd7 {[%clk 0:02:48.1]} 12. Re1 {[%clk 0:02:28.9]}
12... g6 {[%clk 0:02:48]} 13. b3 {[%clk 0:02:11.5]} 13... Bf8 {[%clk 0:02:46]}
14. Rxe8 {[%clk 0:02:10.5]} 14... Qxe8 {[%clk 0:02:45.7]} 15. Bb2 {[%clk
0:02:10.5]} 15... Bg7 {[%clk 0:02:45.5]} 16. Qd2 {[%clk 0:02:09.5]} 16... c6
{[%clk 0:02:45.8]} 17. Re1 {[%clk 0:02:07]} 17... Qf8 {[%clk 0:02:45.9]} 18. Bf1
{[%clk 0:02:03.1]} 18... cxd5 {[%clk 0:02:21.6]} 19. cxd5 {[%clk 0:01:58.2]}
19... Re8 {[%clk 0:02:22.1]} 20. Rxe8 {[%clk 0:01:57.6]} 20... Qxe8 {[%clk
0:02:21.4]} 21. Bb5 {[%clk 0:01:54.2]} 21... a6 {[%clk 0:02:16.6]} 22. Bc6
{[%clk 0:01:51.6]} 22... Qc8 {[%clk 0:02:12.8]} 23. Bxb7 {[%clk 0:01:40.7]}
23... Qxb7 {[%clk 0:02:13.7]} 24. h3 {[%clk 0:01:40.8]} 24... b5 {[%clk
0:02:11.6]} 25. Qd3 {[%clk 0:01:19.4]} 25... Nb6 {[%clk 0:02:04.8]} 26. Qe3
{[%clk 0:01:12.4]} 26... h5 {[%clk 0:01:18.3]} 27. Qf4 {[%clk 0:00:41.7]} 27...
Qe7 {[%clk 0:00:37.9]} 28. Qd4 {[%clk 0:00:37.5]} 28... Nfd7 {[%clk 0:00:32.8]}
29. Qd2 {[%clk 0:00:33.4]} 29... Nc5 {[%clk 0:00:31.6]} 30. Ba3 {[%clk
0:00:25.4]} 30... Bxc3 {[%clk 0:00:28.3]} 31. Qxc3 {[%clk 0:00:25.4]} 31... Nxd5
{[%clk 0:00:28.7]} 32. Qd4 {[%clk 0:00:24]} 32... Nf6 {[%clk 0:00:22.7]} 33. Bb2
{[%clk 0:00:23.9]} 33... Ncd7 {[%clk 0:00:23.3]} 34. Qa7 {[%clk 0:00:16.6]}
34... Qe2 {[%clk 0:00:21.7]} 35. Bxf6 {[%clk 0:00:13.5]} 35... Nxf6 {[%clk
0:00:22.6]} 36. Qxa6 {[%clk 0:00:13]} 36... Ne4 {[%clk 0:00:22.4]} 37. Qa7
{[%clk 0:00:12.5]} 37... Qd1+ {[%clk 0:00:22.4]} 38. Kh2 {[%clk 0:00:12.5]}
38... Qc2 {[%clk 0:00:22.6]} 39. Kg1 {[%clk 0:00:12.2]} 39... Qc1+ {[%clk
0:00:22.5]} 40. Kh2 {[%clk 0:00:12.2]} 40... Qc2 {[%clk 0:00:21.5]} 41. Kg1
{[%clk 0:00:12]} 41... b4 {[%clk 0:00:17.7]} 42. Qe3 {[%clk 0:00:10.7]} 42... d5
{[%clk 0:00:17.7]} 43. Qa7 {[%clk 0:00:07.8]} 43... Qc1+ {[%clk 0:00:17.8]} 44.
Kh2 {[%clk 0:00:07.9]} 44... Qb2 {[%clk 0:00:18]} 45. Kg1 {[%clk 0:00:08]} 45...
Qc2 {[%clk 0:00:18.4]} 46. Qa8+ {[%clk 0:00:07.9]} 46... Kg7 {[%clk 0:00:17]}
47. Qa7 {[%clk 0:00:08.6]} 47... Qd1+ {[%clk 0:00:13.3]} 48. Kh2 {[%clk
0:00:08.7]} 48... Kg8 {[%clk 0:00:12.9]} 49. Qa8+ {[%clk 0:00:08.7]} 49... Kh7
{[%clk 0:00:12.9]} 50. Qa7 {[%clk 0:00:09.4]} 50... Kg8 {[%clk 0:00:13.3]} 51.
Qa8+ {[%clk 0:00:09.6]} 51... Kg7 {[%clk 0:00:13]} 52. Qa7 {[%clk 0:00:09.8]}
52... Qd2 {[%clk 0:00:13.4]} 53. Kg1 {[%clk 0:00:09.4]} 53... Nc3 {[%clk
0:00:13.9]} 54. Qd4+ {[%clk 0:00:03.5]} 54... Qxd4 {[%clk 0:00:13.9]} 55. Nxd4
{[%clk 0:00:04.4]} 55... Nxa2 {[%clk 0:00:14.5]} 56. f4 {[%clk 0:00:04.4]} 56...
h4 {[%clk 0:00:10.7]} 57. Kf2 {[%clk 0:00:04]} 57... Kf6 {[%clk 0:00:11.1]} 58.
Ke3 {[%clk 0:00:03.7]} 58... Ke7 {[%clk 0:00:10.8]} 59. Nc2 {[%clk 0:00:01.9]}
59... Kd6 {[%clk 0:00:11.2]} 60. Kd4 {[%clk 0:00:02.6]} 60... Nc1 {[%clk
0:00:11.7]} 61. Nxb4 {[%clk 0:00:02.7]} 61... Nxb3+ {[%clk 0:00:12.3]} 62. Kd3
{[%clk 0:00:03]} 62... Nc5+ {[%clk 0:00:11.5]} 63. Kd4 {[%clk 0:00:03.1]} 63...
Ne6+ {[%clk 0:00:12.1]} 64. Ke3 {[%clk 0:00:03.6]} 64... f6 {[%clk 0:00:12.1]}
65. Nd3 {[%clk 0:00:03.4]} 65... Ng7 {[%clk 0:00:12.1]} 66. Kf3 {[%clk
0:00:03.6]} 66... Nf5 {[%clk 0:00:12]} 67. Nf2 {[%clk 0:00:03]} 67... Kc5 {[%clk
0:00:11.9]} 68. Ng4 {[%clk 0:00:03.4]} 68... Nd4+ {[%clk 0:00:11.4]} 69. Ke3
{[%clk 0:00:03.1]} 69... Nf5+ {[%clk 0:00:10.2]} 70. Kf3 {[%clk 0:00:03.5]}
70... d4 {[%clk 0:00:09.7]} 71. Nxf6 {[%clk 0:00:03.9]} 71... d3 {[%clk
0:00:09.6]} 72. Kf2 {[%clk 0:00:03.9]} 72... Kd4 {[%clk 0:00:09.6]} 73. Ke1
{[%clk 0:00:04.4]} 73... Ke3 {[%clk 0:00:08.6]} 74. Nd5+ {[%clk 0:00:04.7]}
74... Ke4 {[%clk 0:00:09.1]} 75. Nb4 {[%clk 0:00:04.6]} 75... Ne3 {[%clk
0:00:08.4]} 76. Kd2 {[%clk 0:00:04.2]} 76... Nf1+ {[%clk 0:00:07.9]} 77. Ke1
{[%clk 0:00:04.3]} 77... Ne3 {[%clk 0:00:08.4]} 78. Kd2 {[%clk 0:00:04.5]} 78...
Nxg2 {[%clk 0:00:08.7]} 79. Nxd3 {[%clk 0:00:05]} 79... Nxf4 {[%clk 0:00:09.2]}
80. Nc5+ {[%clk 0:00:04.7]} 80... Kf3 {[%clk 0:00:09.3]} 81. Ke1 {[%clk
0:00:04.9]} 81... Nxh3 {[%clk 0:00:08.7]} 82. Kf1 {[%clk 0:00:04.8]} 82... g5
{[%clk 0:00:09]} 83. Nd3 {[%clk 0:00:05.1]} 83... Nf4 {[%clk 0:00:08.1]} 84.
Ne1+ {[%clk 0:00:04.9]} 84... Kg3 {[%clk 0:00:08.4]} 85. Kg1 {[%clk 0:00:05.5]}
85... g4 {[%clk 0:00:07.9]} 86. Nc2 {[%clk 0:00:05.7]} 86... h3 {[%clk 0:00:07]}
87. Ne3 {[%clk 0:00:04.9]} 87... Ne2+ {[%clk 0:00:06.9]} 88. Kh1 {[%clk
0:00:05.3]} 88... Kf3 {[%clk 0:00:07.4]} 89. Nf1 {[%clk 0:00:04.4]} 89... g3
{[%clk 0:00:07.6]} 90. Nxg3 {[%clk 0:00:04.4]} 90... Nxg3+ {[%clk 0:00:06.7]}
91. Kh2 {[%clk 0:00:05.1]} 91... Kg4 {[%clk 0:00:07.1]} 92. Kg1 {[%clk
0:00:05.8]} 92... Nh5 {[%clk 0:00:07.7]} 93. Kh2 {[%clk 0:00:06.4]} 93... Kh4
{[%clk 0:00:07.7]} 94. Kg1 {[%clk 0:00:06.8]} 94... Kg3 {[%clk 0:00:08.6]} 95.
Kh1 {[%clk 0:00:07.3]} 95... Nf6 {[%clk 0:00:09.4]} 96. Kg1 {[%clk 0:00:08]}
96... Ng4 {[%clk 0:00:10.2]} 97. Kh1 {[%clk 0:00:08.7]} 97... Nf2+ {[%clk
0:00:10.5]} 0-1

[Event "Early-Titled-Tuesday-Blitz-March-05-2024"]
[Site "Chess.com"]
[Date "2024.03.05"]
[Round "4"]
[White "The_Straightforward_Rook"]
[Black "invisible_s0ul"]
[Result "1-0"]
[WhiteElo "2461"]
[BlackElo "2227"]
[TimeControl "180+1"]
[EndTime "8:37:13 PST"]
[Termination "The_Straightforward_Rook won by resignation"]

1. Nf3 {[%clk 0:02:56.4]} 1... d5 {[%clk 0:02:59.1]} 2. d4 {[%clk 0:02:56]} 2...
Nf6 {[%clk 0:02:57.9]} 3. e3 {[%clk 0:02:55.9]} 3... e6 {[%clk 0:02:58]} 4. Bd3
{[%clk 0:02:56.4]} 4... c5 {[%clk 0:02:57.7]} 5. c3 {[%clk 0:02:55.8]} 5... Nc6
{[%clk 0:02:57.7]} 6. O-O {[%clk 0:02:55.5]} 6... Bd6 {[%clk 0:02:58.2]} 7. dxc5
{[%clk 0:02:55.2]} 7... Bxc5 {[%clk 0:02:58.2]} 8. b4 {[%clk 0:02:56.1]} 8...
Bd6 {[%clk 0:02:58.5]} 9. b5 {[%clk 0:02:56.8]} 9... Ne5 {[%clk 0:02:57.4]} 10.
Nxe5 {[%clk 0:02:57.2]} 10... Bxe5 {[%clk 0:02:58.3]} 11. Ba3 {[%clk 0:02:57.5]}
11... Qc7 {[%clk 0:02:53.9]} 12. h3 {[%clk 0:02:43.8]} 12... Nd7 {[%clk
0:02:46.9]} 13. Nd2 {[%clk 0:02:31.1]} 13... Qxc3 {[%clk 0:02:39.2]} 14. Nb3
{[%clk 0:02:29.7]} 14... Bb8 {[%clk 0:02:18.4]} 15. Rc1 {[%clk 0:02:27.4]} 15...
Bh2+ {[%clk 0:01:58.7]} 16. Kxh2 {[%clk 0:02:22.6]} 16... Qe5+ {[%clk
0:01:59.6]} 17. Kg1 {[%clk 0:02:19.3]} 1-0

[Event "Early-Titled-Tuesday-Blitz-March-05-2024"]
[Site "Chess.com"]
[Date "2024.03.05"]
[Round "4"]
[White "Titus369"]
[Black "Bkmzzzzz"]
[Result "1-0"]
[WhiteElo "2643"]
[BlackElo "2435"]
[TimeControl "180+1"]
[EndTime "8:38:22 PST"]
[Termination "Titus369 won by resignation"]

1. e4 {[%clk 0:03:00.9]} 1... d6 {[%clk 0:02:58.5]} 2. d4 {[%clk 0:02:55.1]}
2... Nf6 {[%clk 0:02:58.3]} 3. Nc3 {[%clk 0:02:51.2]} 3... e5 {[%clk 0:02:58.4]}
4. Nf3 {[%clk 0:02:47.1]} 4... Nbd7 {[%clk 0:02:57.2]} 5. g4 {[%clk 0:02:47.6]}
5... Nxg4 {[%clk 0:02:54.7]} 6. Rg1 {[%clk 0:02:45]} 6... Ngf6 {[%clk
0:02:55.1]} 7. Bc4 {[%clk 0:02:42]} 7... exd4 {[%clk 0:02:52.3]} 8. Qxd4 {[%clk
0:02:40.5]} 8... Nb6 {[%clk 0:02:47.2]} 9. e5 {[%clk 0:02:18.9]} 9... dxe5
{[%clk 0:02:41.8]} 10. Bxf7+ {[%clk 0:02:18]} 10... Ke7 {[%clk 0:02:37]} 11.
Qxd8+ {[%clk 0:02:09.7]} 11... Kxd8 {[%clk 0:02:37.9]} 12. Nxe5 {[%clk
0:02:05.7]} 12... Bf5 {[%clk 0:02:24.6]} 13. Bf4 {[%clk 0:01:54.3]} 13... Bxc2
{[%clk 0:02:23.8]} 14. Rc1 {[%clk 0:01:53.6]} 14... Bf5 {[%clk 0:02:16.5]} 15.
Rd1+ {[%clk 0:01:37.4]} 15... Kc8 {[%clk 0:02:07.2]} 16. Bb3 {[%clk 0:01:25.9]}
16... Bg6 {[%clk 0:01:58.4]} 17. Be6+ {[%clk 0:01:21.6]} 1-0

[Event "Early-Titled-Tuesday-Blitz-March-05-2024"]
[Site "Chess.com"]
[Date "2024.03.05"]
[Round "4"]
[White "viniciusrego"]
[Black "Mikasinski"]
[Result "0-1"]
[WhiteElo "2376"]
[BlackElo "2626"]
[TimeControl "180+1"]
[EndTime "8:38:39 PST"]
[Termination "Mikasinski won by resignation"]

1. Nf3 {[%clk 0:03:00.9]} 1... Nf6 {[%clk 0:03:00]} 2. c4 {[%clk 0:03:00.7]}
2... e6 {[%clk 0:02:59.8]} 3. g3 {[%clk 0:02:59.4]} 3... Be7 {[%clk 0:02:57.7]}
4. Bg2 {[%clk 0:02:59]} 4... O-O {[%clk 0:02:58.2]} 5. O-O {[%clk 0:02:59.5]}
5... d5 {[%clk 0:02:58.3]} 6. b3 {[%clk 0:02:57.7]} 6... b6 {[%clk 0:02:52.3]}
7. Bb2 {[%clk 0:02:55.5]} 7... Bb7 {[%clk 0:02:52.8]} 8. d4 {[%clk 0:02:46.1]}
8... Ne4 {[%clk 0:02:51]} 9. Nbd2 {[%clk 0:02:43.4]} 9... f5 {[%clk 0:02:49.6]}
10. Ne5 {[%clk 0:02:42.9]} 10... Nd7 {[%clk 0:02:47.6]} 11. Ndf3 {[%clk
0:02:42.9]} 11... Ndf6 {[%clk 0:02:43.6]} 12. Rc1 {[%clk 0:02:41.9]} 12... c5
{[%clk 0:02:41.8]} 13. cxd5 {[%clk 0:02:41.4]} 13... exd5 {[%clk 0:02:39.9]} 14.
dxc5 {[%clk 0:02:34.4]} 14... bxc5 {[%clk 0:02:38.2]} 15. Nd3 {[%clk 0:02:35]}
15... Rc8 {[%clk 0:02:32.7]} 16. Nf4 {[%clk 0:02:35.2]} 16... Qd6 {[%clk
0:02:26.1]} 17. h4 {[%clk 0:02:34.7]} 17... d4 {[%clk 0:02:21.5]} 18. Ng5 {[%clk
0:02:27]} 18... Ng4 {[%clk 0:01:47.4]} 19. Nxe4 {[%clk 0:02:21.4]} 19... Bxe4
{[%clk 0:01:41.8]} 20. Bxe4 {[%clk 0:02:18.3]} 20... fxe4 {[%clk 0:01:40.7]} 21.
e3 {[%clk 0:02:18.5]} 21... Ne5 {[%clk 0:01:37.6]} 22. exd4 {[%clk 0:02:08.6]}
22... Nf3+ {[%clk 0:01:28]} 23. Kh1 {[%clk 0:02:05.2]} 23... Rxf4 {[%clk
0:01:23.8]} 24. dxc5 {[%clk 0:01:47.6]} 24... Rxh4+ {[%clk 0:01:21.7]} 0-1

[Event "Early-Titled-Tuesday-Blitz-March-05-2024"]
[Site "Chess.com"]
[Date "2024.03.05"]
[Round "4"]
[White "GAusal"]
[Black "erlesfar"]
[Result "1/2-1/2"]
[WhiteElo "2310"]
[BlackElo "2446"]
[TimeControl "180+1"]
[EndTime "8:39:38 PST"]
[Termination "Game drawn by agreement"]

1. d4 {[%clk 0:02:56.6]} 1... d5 {[%clk 0:03:00.2]} 2. Nf3 {[%clk 0:02:56.6]}
2... e6 {[%clk 0:03:00.8]} 3. Bf4 {[%clk 0:02:56.4]} 3... c5 {[%clk 0:03:00.3]}
4. e3 {[%clk 0:02:56.7]} 4... cxd4 {[%clk 0:02:59.5]} 5. exd4 {[%clk 0:02:56.2]}
5... Nc6 {[%clk 0:02:59.9]} 6. c3 {[%clk 0:02:56.5]} 6... Nf6 {[%clk 0:03:00.1]}
7. Bd3 {[%clk 0:02:56.3]} 7... Bd6 {[%clk 0:03:00.5]} 8. Bxd6 {[%clk 0:02:55.6]}
8... Qxd6 {[%clk 0:03:01.4]} 9. O-O {[%clk 0:02:55.3]} 9... O-O {[%clk
0:03:01.9]} 10. Re1 {[%clk 0:02:55.4]} 10... Re8 {[%clk 0:03:01.4]} 11. Nbd2
{[%clk 0:02:54.6]} 11... e5 {[%clk 0:03:00.4]} 12. dxe5 {[%clk 0:02:54.2]} 12...
Nxe5 {[%clk 0:02:59.9]} 13. Nxe5 {[%clk 0:02:54.4]} 13... Rxe5 {[%clk
0:03:00.8]} 14. Rxe5 {[%clk 0:02:52.7]} 14... Qxe5 {[%clk 0:03:01.7]} 15. Nf3
{[%clk 0:02:52.8]} 15... Qd6 {[%clk 0:03:02.3]} 16. Nd4 {[%clk 0:02:49]} 16...
Bg4 {[%clk 0:02:59.5]} 17. f3 {[%clk 0:02:47.9]} 17... Be6 {[%clk 0:02:57.2]}
18. Bc2 {[%clk 0:02:46.1]} 18... Rc8 {[%clk 0:02:54.7]} 19. Qd3 {[%clk
0:02:45.3]} 19... g6 {[%clk 0:02:51.8]} 20. Re1 {[%clk 0:02:43.7]} 20... Nd7
{[%clk 0:02:51.1]} 21. Nxe6 {[%clk 0:02:40]} 21... fxe6 {[%clk 0:02:50.2]} 22.
Qe3 {[%clk 0:02:40]} 22... Qc5 {[%clk 0:02:46.8]} 23. Qxc5 {[%clk 0:02:36.6]}
23... Nxc5 {[%clk 0:02:47.7]} 24. Kf2 {[%clk 0:02:25.6]} 24... Re8 {[%clk
0:02:40.5]} 25. Ke3 {[%clk 0:02:22.5]} 25... e5 {[%clk 0:02:37.8]} 26. Rd1
{[%clk 0:02:17.8]} 26... Rd8 {[%clk 0:02:30.8]} 27. b4 {[%clk 0:01:59.5]} 27...
Ne6 {[%clk 0:02:29.9]} 28. Bb3 {[%clk 0:01:56.7]} 28... d4+ {[%clk 0:02:29.6]}
29. cxd4 {[%clk 0:01:50.9]} 29... exd4+ {[%clk 0:02:30.5]} 30. Ke4 {[%clk
0:01:45.3]} 30... Re8 {[%clk 0:02:20.9]} 31. Rxd4 {[%clk 0:01:39.1]} 31... Kf8
{[%clk 0:02:18.2]} 32. Bxe6 {[%clk 0:01:37.5]} 32... Rxe6+ {[%clk 0:02:17.4]}
33. Kd3 {[%clk 0:01:35.6]} 33... Ra6 {[%clk 0:02:14.1]} 34. Rd7 {[%clk
0:01:24.8]} 34... Rxa2 {[%clk 0:02:13]} 35. Rxb7 {[%clk 0:01:24]} 35... Rxg2
{[%clk 0:02:12.8]} 36. Rxa7 {[%clk 0:01:23.5]} 36... Rxh2 {[%clk 0:02:11]} 37.
b5 {[%clk 0:01:21.9]} 37... Rb2 {[%clk 0:02:09.9]} 38. Kc4 {[%clk 0:01:21]}
38... Ke8 {[%clk 0:02:07.7]} 39. Rxh7 {[%clk 0:01:17.3]} 39... Rc2+ {[%clk
0:02:07.6]} 40. Kb3 {[%clk 0:01:15.3]} 40... Rf2 {[%clk 0:02:06.8]} 41. b6
{[%clk 0:01:08.6]} 41... Rxf3+ {[%clk 0:02:04.5]} 42. Kb4 {[%clk 0:01:08.9]}
42... Rf1 {[%clk 0:01:59.6]} 43. b7 {[%clk 0:01:07.5]} 43... Rb1+ {[%clk
0:01:59.8]} 44. Kc5 {[%clk 0:01:07.2]} 44... Kd8 {[%clk 0:01:59.6]} 45. Kc6
{[%clk 0:01:06.9]} 45... Rc1+ {[%clk 0:01:59.3]} 46. Kb6 {[%clk 0:01:06.4]}
46... Rb1+ {[%clk 0:01:59.3]} 47. Kc6 {[%clk 0:01:06.2]} 47... Rc1+ {[%clk
0:01:59.4]} 48. Kb6 {[%clk 0:01:06.2]} 48... Rb1+ {[%clk 0:01:57.8]} 1/2-1/2